bitfinex/quotes_SOLUSD_20241118
["timestamp","ask_amount","ask_price","bid_price","bid_amount"]
[1731940382776,32.38003856,241.36,241.28,32.38003856]
[1731940382976,32.38003856,241.41,241.32,32.38003856]
[1731940383193,32.38003856,241.45,241.36,32.38003856]
[1731940383602,32.38003856,241.47,241.4,32.38003856]
[1731940383896,74.1397,241.57,241.45,0.12549]
[1731940384084,32.38003856,241.48,241.41,43.902374]
[1731940384392,4.1397,241.57,241.41,43.902374]
[1731940384393,32.38003856,241.52,241.45,0.12549]
[1731940384798,32.38003856,241.54,241.47,52.50552856]
[1731940384981,32.38003856,241.58,241.49,32.50552856]
[1731940385376,32.38003856,241.56,241.49,20.25098]
[1731940385591,32.38003856,241.6,241.52,4.1404]
[1731940385796,32.38003856,241.62,241.53,32.50552856]
[1731940386100,32.38003856,241.6,241.53,0.12549]
[1731940386286,22.9945,241.69,241.56,0.12549]
[1731940386485,32.38003856,241.65,241.57,32.38003856]
[1731940386685,32.38003856,241.63,241.56,20.12549]
[1731940387185,32.38003856,241.67,241.59,32.38003856]
[1731940387393,32.38003856,241.67,241.6,0.12549]
[1731940387689,32.38003856,241.67,241.57,32.38003856]
[1731940387690,32.38003856,241.65,241.57,0.12549]
[1731940388096,32.38003856,241.69,241.6,0.12549]
[1731940388284,32.38003856,241.69,241.57,23.902374]
[1731940388285,32.38003856,241.65,241.58,20.0]
[1731940388980,32.38003856,241.63,241.57,0.12549]
[1731940389177,32.38003856,241.67,241.58,0.12549]
[1731940389376,32.38003856,241.75,241.66,0.12549]
[1731940389608,30.0,241.67,241.66,4.26349]
[1731940390200,32.38003856,241.73,241.66,4.26349]
[1731940390805,32.38003856,241.75,241.66,4.26349]
[1731940391303,160.0,241.83,241.73,32.38003856]
[1731940391505,32.38003856,241.84,241.75,32.38003856]
[1731940391681,32.38003856,241.84,241.75,36.51653856]
[1731940392005,32.38003856,241.82,241.75,4.1365]
[1731940392207,32.38003856,241.8,241.71,32.38003856]
[1731940392504,32.38003856,241.8,241.73,32.38003856]
[1731940392679,70.0,241.84,241.72,0.12549]
[1731940392680,32.38003856,241.84,241.75,32.38003856]
[1731940392885,32.38003856,241.86,241.78,0.12549]
[1731940393082,32.38003856,241.88,241.79,32.38003856]
[1731940393683,32.38003856,241.88,241.8,4.1356]
[1731940394311,160.0,241.9,241.79,32.38003856]
[1731940394312,32.38003856,241.86,241.79,32.38003856]
[1731940394485,32.38003856,241.88,241.79,32.38003856]
[1731940395103,32.38003856,241.88,241.81,32.38003856]
[1731940395415,32.38003856,241.88,241.79,32.38003856]
[1731940395589,32.38003856,241.88,241.79,36.51583856]
[1731940396293,32.38003856,241.88,241.81,32.38003856]
[1731940396495,32.38003856,241.9,241.81,32.38003856]
[1731940396798,32.38003856,241.9,241.83,32.38003856]
[1731940397184,106.51363856,241.92,241.83,32.38003856]
[1731940397388,102.38003856,241.92,241.83,32.38003856]
[1731940397610,32.38003856,241.92,241.83,32.38003856]
[1731940397818,32.38003856,241.94,241.87,32.38003856]
[1731940397991,32.38003856,241.94,241.85,32.38003856]
[1731940398186,32.38003856,241.92,241.81,24.027864]
[1731940398487,32.38003856,241.88,241.81,32.38003856]
[1731940398807,32.38003856,241.88,241.79,32.38003856]
[1731940399009,102.38003856,241.88,241.79,32.38003856]
[1731940399190,32.38003856,241.86,241.77,36.51613856]
[1731940399513,32.38003856,241.82,241.75,32.38003856]
[1731940399722,192.38003856,241.87,241.77,36.51603856]
[1731940399903,102.38003856,241.85,241.77,36.51603856]
[1731940400096,32.38003856,241.83,241.75,36.51643856]
[1731940400416,32.38003856,241.83,241.75,32.38003856]
[1731940400595,32.38003856,241.81,241.73,32.38003856]
[1731940400801,32.38003856,241.79,241.71,32.38003856]
[1731940401110,70.0,241.82,241.69,4.1375]
[1731940401111,70.0,241.82,241.75,32.38003856]
[1731940401493,32.38003856,241.79,241.7,32.38003856]
[1731940401696,32.38003856,241.77,241.7,32.38003856]
[1731940401901,32.38003856,241.79,241.7,36.51723856]
[1731940402094,32.38003856,241.81,241.72,32.38003856]
[1731940402687,74.1354,241.82,241.7,4.1372]
[1731940402688,32.38003856,241.79,241.7,36.51723856]
[1731940402907,32.38003856,241.81,241.72,32.38003856]
[1731940403113,32.38003856,241.77,241.7,32.38003856]
[1731940403320,70.0,241.79,241.67,6.4548]
[1731940403321,32.38003856,241.75,241.68,32.38003856]
[1731940403614,32.38003856,241.75,241.67,4.1378]
[1731940404202,32.38003856,241.77,241.7,32.38003856]
[1731940404413,32.38003856,241.77,241.68,32.38003856]
[1731940404598,160.0,241.78,241.67,4.1378]
[1731940404599,32.38003856,241.75,241.67,4.1378]
[1731940404942,32.38003856,241.73,241.67,4.1378]
[1731940405603,32.38003856,241.73,241.64,32.38003856]
[1731940405604,30.0,241.74,241.66,32.38003856]
[1731940405800,30.0,241.74,241.67,4.1378]
[1731940406197,30.0,241.74,241.7,32.38003856]
[1731940406395,160.0,241.77,241.7,32.38003856]
[1731940406594,192.38003856,241.77,241.68,32.38003856]
[1731940406916,32.38003856,241.73,241.66,32.38003856]
[1731940407124,32.38003856,241.73,241.64,32.38003856]
[1731940407125,32.38003856,241.71,241.64,32.38003856]
[1731940407302,32.38003856,241.71,241.62,32.38003856]
[1731940407621,70.0,241.73,241.61,4.1389]
[1731940407797,32.38003856,241.69,241.62,32.38003856]
[1731940408516,32.38003856,241.73,241.66,32.38003856]
[1731940408727,160.0,241.76,241.56,32.38003856]
[1731940408728,32.38003856,241.77,241.7,32.38003856]
[1731940408898,164.1355,241.81,241.7,32.38003856]
[1731940408899,30.0,241.71,241.7,32.38003856]
[1731940409096,30.0,241.71,241.7,32.50552856]
[1731940409917,70.0,241.83,241.7,32.50552856]
[1731940409918,32.38003856,241.79,241.71,4.1371]
[1731940410118,32.38003856,241.79,241.72,32.38003856]
[1731940410614,32.38003856,241.81,241.72,32.38003856]
[1731940412104,32.38003856,241.81,241.73,4.1368]
[1731940412505,32.38003856,241.81,241.74,32.38003856]
[1731940413410,102.38003856,241.83,241.74,32.38003856]
[1731940413731,32.38003856,241.85,241.76,32.38003856]
[1731940413918,22.7843,241.9,241.8,32.38003856]
[1731940413919,32.38003856,241.89,241.8,32.38003856]
[1731940414226,19.70946057,241.89,241.81,4.1354]
[1731940414538,30.0,241.82,241.81,4.1354]
[1731940414732,30.0,241.82,241.78,4.1358]
[1731940415038,70.0,241.88,241.76,19.70946057]
[1731940415039,19.70946057,241.85,241.76,19.70946057]
[1731940415336,19.70946057,241.85,241.76,23.84566057]
[1731940415828,160.0,241.87,241.76,23.84566057]
[1731940415829,19.70946057,241.83,241.76,4.1362]
[1731940416142,179.70946057,241.87,241.78,19.70946057]
[1731940416342,19.70946057,241.87,241.79,0.12549]
[1731940416628,23.84396057,241.87,241.78,19.70946057]
[1731940416831,19.70946057,241.84,241.76,23.84566057]
[1731940417133,19.70946057,241.86,241.77,0.12549]
[1731940417305,19.70946057,241.8,241.7,23.84676057]
[1731940417508,19.70946057,241.78,241.7,4.1373]
[1731940419130,19.70946057,241.71,241.64,4.1383]
[1731940419966,19.70946057,241.75,241.65,19.70946057]
[1731940420148,19.70946057,241.75,241.64,4.1383]
[1731940420149,19.70946057,241.75,241.67,19.70946057]
[1731940420429,19.70946057,241.73,241.65,4.1382]
[1731940420614,70.0,241.76,241.65,4.1382]
[1731940420615,49.70946057,241.77,241.67,19.70946057]
[1731940420816,30.0,241.77,241.71,19.70946057]
[1731940421130,23.84546057,241.78,241.69,19.70946057]
[1731940421517,19.70946057,241.78,241.69,19.70946057]
[1731940422135,89.70946057,241.76,241.67,19.70946057]
[1731940422307,19.70946057,241.72,241.63,19.70946057]
[1731940422514,19.70946057,241.7,241.64,4.1383]
[1731940423538,30.0,241.69,241.64,4.1383]
[1731940424737,30.0,241.69,241.65,19.70946057]
[1731940424929,30.0,241.69,241.67,19.70946057]
[1731940425137,19.70946057,241.76,241.67,19.70946057]
[1731940426745,19.70946057,241.76,241.68,4.1377]
[1731940429139,19.70946057,241.8,241.71,19.70946057]
[1731940429727,19.70946057,241.78,241.69,19.70946057]
[1731940430020,19.70946057,241.78,241.68,4.1377]
[1731940430249,22.8059,241.86,241.57,6.1131]
[1731940430250,19.70946057,241.69,241.57,6.1131]
[1731940430535,19.70946057,241.71,241.62,19.70946057]
[1731940430733,160.0,241.75,241.57,6.1131]
[1731940430734,19.70946057,241.73,241.64,19.70946057]
[1731940430940,19.70946057,241.75,241.66,19.70946057]
[1731940431113,160.0,241.82,241.7,19.70946057]
[1731940431337,19.70946057,241.86,241.78,19.70946057]
[1731940431768,19.70946057,241.88,241.78,19.70946057]
[1731940432263,19.70946057,241.86,241.78,19.70946057]
[1731940432636,19.70946057,241.86,241.79,4.1358]
[1731940433665,19.70946057,241.84,241.77,4.1361]
[1731940433858,160.0,241.91,241.77,4.1361]
[1731940433859,19.70946057,241.86,241.77,4.1361]
[1731940434034,19.70946057,241.86,241.78,19.70946057]
[1731940434235,19.70946057,241.86,241.77,4.1361]
[1731940434564,19.70946057,241.84,241.77,4.1361]
[1731940435251,19.70946057,241.86,241.77,4.1361]
[1731940436051,4.1341,241.89,241.77,4.1361]
[1731940436052,19.70946057,241.84,241.77,4.1361]
[1731940436637,19.70946057,241.84,241.69,6.2796]
[1731940436638,19.70946057,241.78,241.69,25.98906057]
[1731940436942,4.1345,241.87,241.69,6.2796]
[1731940436943,19.70946057,241.76,241.69,6.2796]
[1731940437269,19.70946057,241.74,241.68,4.1376]
[1731940437442,19.70946057,241.72,241.68,4.1376]
[1731940437643,19.70946057,241.76,241.69,19.70946057]
[1731940437849,19.70946057,241.78,241.69,19.70946057]
[1731940438042,19.70946057,241.78,241.69,23.84696057]
[1731940438262,70.0,241.69,241.54,16.4458]
[1731940438439,19.70946057,241.6,241.52,6.4365]
[1731940438840,19.70946057,241.62,241.53,19.70946057]
[1731940439041,19.70946057,241.57,241.53,4.1402]
[1731940439235,19.70946057,241.55,241.49,4.1409]
[1731940439438,19.70946057,241.53,241.49,4.1409]
[1731940439668,19.70946057,241.55,241.49,4.1409]
[1731940439965,19.70946057,241.55,241.46,19.70946057]
[1731940440167,19.70946057,241.49,241.47,4.1413]
[1731940440338,19.70946057,241.48,241.43,25.2803573]
[1731940440541,19.70946057,241.48,241.43,29.4221573]
[1731940440869,19.70946057,241.52,241.44,25.2803573]
[1731940441240,19.70946057,241.48,241.44,25.2803573]
[1731940441451,19.70946057,241.5,241.43,29.4222573]
[1731940441654,19.70946057,241.52,241.43,23.85136057]
[1731940441951,19.70946057,241.48,241.41,4.1423]
[1731940442359,19.70946057,241.46,241.37,19.70946057]
[1731940442671,19.70946057,241.46,241.38,4.1426]
[1731940442968,70.0,241.48,241.36,25.60156158]
[1731940442969,19.70946057,241.44,241.36,25.60156158]
[1731940443260,89.70946057,241.46,241.37,19.70946057]
[1731940443460,89.70946057,241.46,241.35,25.60156158]
[1731940443461,160.0,241.47,241.39,19.70946057]
[1731940443964,70.0,241.46,241.39,19.70946057]
[1731940444158,4.1416,241.45,241.37,19.70946057]
[1731940444462,89.70946057,241.46,241.37,19.70946057]
[1731940444654,160.0,241.47,241.41,19.70946057]
[1731940444856,70.0,241.49,241.41,19.70946057]
[1731940445168,19.70946057,241.5,241.41,19.70946057]
[1731940445462,19.70946057,241.48,241.39,19.70946057]
[1731940445639,70.0,241.46,241.39,19.70946057]
[1731940446040,19.70946057,241.44,241.35,19.70946057]
[1731940446445,164.1416,241.45,241.37,19.70946057]
[1731940446656,160.0,241.49,241.44,19.70946057]
[1731940446848,70.0,241.6,241.48,19.70946057]
[1731940447047,70.0,241.6,241.55,19.70946057]
[1731940447647,30.0,241.68,241.59,19.70946057]
[1731940447851,70.0,241.69,241.63,19.70946057]
[1731940448242,160.0,241.71,241.63,19.70946057]
[1731940448439,26.28566057,241.8,241.63,19.70946057]
[1731940448440,160.0,241.79,241.7,19.70946057]
[1731940448642,160.0,241.82,241.75,19.70946057]
[1731940448863,160.0,241.82,241.77,19.70946057]
[1731940449246,160.0,241.84,241.77,19.70946057]
[1731940449451,70.0,241.85,241.79,19.70946057]
[1731940449650,160.0,241.88,241.81,19.70946057]
[1731940450345,70.0,241.91,241.83,32.02409718]
[1731940450545,192.02409718,241.92,241.83,32.02409718]
[1731940450740,32.02409718,241.92,241.83,32.02409718]
[1731940450945,70.0,241.91,241.83,32.02409718]
[1731940451568,160.0,241.93,241.83,32.02409718]
[1731940451776,32.02409718,241.97,241.88,32.02409718]
[1731940452069,230.0,241.98,241.9,32.02409718]
[1731940452253,230.0,241.98,241.88,32.02409718]
[1731940452456,230.0,241.98,241.9,32.02409718]
[1731940452963,230.0,241.98,241.92,32.02409718]
[1731940453744,32.02409718,241.97,241.88,32.02409718]
[1731940453947,32.02409718,241.97,241.9,32.02409718]
[1731940454354,70.0,241.95,241.88,36.15829718]
[1731940454870,32.02409718,241.94,241.86,32.02409718]
[1731940455371,32.02409718,241.94,241.81,4.1354]
[1731940455574,192.02409718,241.94,241.84,32.02409718]
[1731940455876,160.0,241.94,241.87,32.02409718]
[1731940457172,70.0,241.95,241.87,32.02409718]
[1731940457378,70.0,241.95,241.88,4.1342]
[1731940457547,70.0,241.89,241.68,0.1]
[1731940457746,32.02409718,241.85,241.76,32.02409718]
[1731940457965,102.02409718,241.83,241.74,32.02409718]
[1731940458171,32.02409718,241.81,241.72,32.02409718]
[1731940458394,70.0,241.79,241.72,32.02409718]
[1731940458555,192.02409718,241.78,241.69,36.16159718]
[1731940458971,160.0,241.78,241.72,32.02409718]
[1731940459173,102.02409718,241.86,241.76,32.02409718]
[1731940459477,70.0,241.83,241.76,32.02409718]
[1731940459772,32.02409718,241.82,241.74,32.02409718]
[1731940459955,70.0,241.83,241.76,32.02409718]
[1731940460276,4.1347,241.85,241.72,32.02409718]
[1731940460277,70.0,241.8,241.72,32.02409718]
[1731940460585,70.0,241.77,241.7,32.02409718]
[1731940460876,70.0,241.77,241.72,32.02409718]
[1731940461178,70.0,241.8,241.72,32.02409718]
[1731940461470,192.02409718,241.81,241.74,32.02409718]
[1731940461770,70.0,241.86,241.78,32.02409718]
[1731940461978,32.02409718,241.85,241.76,32.02409718]
[1731940462575,192.02409718,241.87,241.69,24.027864]
[1731940462761,32.02409718,241.89,241.8,32.02409718]
[1731940462951,102.02409718,241.89,241.8,32.02409718]
[1731940463153,102.02409718,241.89,241.78,32.02409718]
[1731940463154,32.02409718,241.87,241.78,32.02409718]
[1731940463457,32.02409718,241.87,241.79,4.1358]
[1731940463659,70.0,241.89,241.82,32.02409718]
[1731940463873,192.02409718,241.91,241.82,32.02409718]
[1731940465069,32.02409718,241.91,241.82,32.02409718]
[1731940465273,70.0,241.95,241.87,32.02409718]
[1731940465469,32.02409718,241.98,241.89,32.02409718]
[1731940465988,32.02409718,241.96,241.87,32.02409718]
[1731940466474,230.0,241.99,241.91,32.02409718]
[1731940466776,32.02409718,241.98,241.89,32.02409718]
[1731940467162,102.02409718,241.96,241.87,32.02409718]
[1731940467377,70.0,241.96,241.89,32.02409718]
[1731940468258,70.0,241.96,241.9,4.1339]
[1731940468959,70.0,241.96,241.89,32.02409718]
[1731940468960,32.02409718,241.95,241.86,32.02409718]
[1731940469161,70.0,241.93,241.86,32.02409718]
[1731940469366,102.02409718,241.93,241.84,36.15889718]
[1731940469666,102.02409718,241.93,241.72,15.674]
[1731940469667,32.02409718,241.91,241.82,36.15929718]
[1731940470177,160.0,241.92,241.86,32.02409718]
[1731940470852,70.0,241.96,241.9,32.02409718]
[1731940471054,70.0,241.96,241.92,32.02409718]
[1731940472463,73.2,242.0,241.92,32.02409718]
[1731940472670,73.2,242.0,241.93,19.69165802]
[1731940472975,73.2,242.0,241.83,4.1351]
[1731940472976,19.69165802,241.98,241.89,19.69165802]
[1731940473153,97.02385802,242.0,241.93,19.69165802]
[1731940473357,3.2,242.0,241.99,19.69165802]
[1731940474560,3.2,242.0,241.99,23.82405802]
[1731940476484,3.2,242.0,241.99,24.07503802]
[1731940476785,3.2,242.0,241.99,23.94954802]
[1731940477085,3.2,242.0,241.99,23.82405802]
[1731940478978,3.2,242.0,241.99,4.1324]
[1731940479175,3.2,242.0,241.97,23.82425802]
[1731940479380,3.2,242.0,241.97,19.69165802]
[1731940480177,3.2,242.0,241.97,23.82435802]
[1731940480679,3.2,242.0,241.72,227.0516902]
[1731940480680,7.3322,242.0,241.93,19.69165802]
[1731940481365,3.2,242.0,241.93,19.69165802]
[1731940481564,3.2,242.0,241.95,19.69165802]
[1731940482259,3.2,242.0,241.97,19.69165802]
[1731940482486,3.2,242.0,241.95,19.69165802]
[1731940483588,27.02395802,242.0,241.91,19.69165802]
[1731940484294,89.69165802,241.96,241.87,19.69165802]
[1731940484592,19.69165802,241.94,241.85,19.69165802]
[1731940484767,3.2,242.0,241.93,19.69165802]
[1731940485086,3.2,242.0,241.99,19.69165802]
[1731940485466,3.2,242.0,241.97,19.69165802]
[1731940486468,3.2,242.0,241.95,19.69165802]
[1731940486869,77.3323,242.0,241.93,19.69165802]
[1731940487072,97.02395802,242.0,241.91,19.69165802]
[1731940487263,160.0,241.99,241.91,19.69165802]
[1731940487990,160.0,241.99,241.89,4.134]
[1731940487991,70.0,241.97,241.89,19.69165802]
[1731940488283,70.0,241.97,241.91,19.69165802]
[1731940488662,70.0,241.97,241.9,4.1338]
[1731940488861,160.0,241.99,241.8,19.69165802]
[1731940488862,160.0,241.99,241.94,19.69165802]
[1731940489067,160.0,241.99,241.96,19.69165802]
[1731940489267,160.0,241.99,241.94,19.69165802]
[1731940489796,160.0,241.99,241.96,19.69165802]
[1731940490275,160.0,241.99,241.94,19.69165802]
[1731940490675,160.0,241.99,241.92,19.69165802]
[1731940490863,234.1324,241.99,241.92,19.69165802]
[1731940491063,160.0,241.98,241.92,19.69165802]
[1731940491466,3.2,242.0,241.92,19.69165802]
[1731940491664,3.2,242.0,241.98,19.69165802]
[1731940492689,3.2,242.0,241.98,23.82405802]
[1731940493385,3.2,242.0,241.99,20.0]
[1731940493690,3.2,242.0,241.99,20.25098]
[1731940494590,3.2,242.0,241.99,20.0]
[1731940495182,3.2,242.0,241.99,44.027864]
[1731940495684,3.2,242.0,241.99,20.12549]
[1731940495873,3.2,242.0,241.99,0.12549]
[1731940496797,3.2,242.0,241.99,0.25098]
[1731940497092,1.0,242.05,242.01,0.25098]
[1731940497295,1.0,242.05,242.04,39.63429604]
[1731940497599,22.6533,242.2,242.05,24.027864]
[1731940497800,22.6533,242.2,242.14,19.69165802]
[1731940497976,22.6533,242.2,242.16,19.69165802]
[1731940498176,22.6533,242.2,242.18,19.69165802]
[1731940498502,22.6533,242.2,242.16,19.69165802]
[1731940498688,70.0,242.26,242.18,19.69165802]
[1731940498889,70.0,242.26,242.21,19.69165802]
[1731940499202,160.0,242.5,242.29,0.1]
[1731940499499,22.4828,242.54,242.48,19.69165802]
[1731940499795,7.2873,242.56,242.48,19.69165802]
[1731940500169,70.0,242.54,242.48,19.69165802]
[1731940500387,7.2873,242.56,242.47,31.8584112]
[1731940500977,7.2873,242.56,242.48,4.124]
[1731940501173,7.2873,242.56,242.48,9.28960879]
[1731940501894,7.2873,242.56,242.48,4.24949]
[1731940502095,7.2873,242.56,242.48,4.124]
[1731940502276,7.2873,242.56,242.48,4.24949]
[1731940502594,7.2873,242.56,242.48,0.12549]
[1731940502800,7.2873,242.56,242.47,31.8584112]
[1731940503597,39.1457112,242.56,242.47,31.8584112]
[1731940503799,7.2873,242.56,242.48,0.12549]
[1731940503989,7.2873,242.56,242.47,31.8584112]
[1731940504198,7.2873,242.56,242.48,0.12549]
[1731940504497,7.2873,242.56,242.48,0.25098]
[1731940504679,7.2873,242.56,242.48,0.12549]
[1731940504875,7.2873,242.56,242.48,0.25098]
[1731940506607,7.2873,242.56,242.48,55.8862752]
[1731940506773,7.2873,242.56,242.51,0.1]
[1731940506976,7.2873,242.56,242.55,60.0090752]
[1731940507178,7.2873,242.56,242.55,80.1090752]
[1731940508298,19.1642,242.74,242.59,0.1]
[1731940508485,19.1642,242.74,242.69,31.8584112]
[1731940508800,19.1642,242.74,242.67,31.8584112]
[1731940509197,19.1642,242.74,242.7,31.8584112]
[1731940509605,19.1642,242.74,242.68,31.8584112]
[1731940510486,19.1642,242.74,242.7,31.8584112]
[1731940511079,19.1642,242.74,242.68,31.8584112]
[1731940511280,19.1642,242.74,242.58,4.2223]
[1731940511281,19.1642,242.74,242.7,31.8584112]
[1731940511486,4.1192,242.77,242.72,31.8584112]
[1731940512000,4.1192,242.77,242.7,31.8584112]
[1731940512390,4.1192,242.77,242.72,31.8584112]
[1731940512791,4.1192,242.77,242.7,31.8584112]
[1731940512994,31.8584112,242.75,242.66,31.8584112]
[1731940513301,0.1,242.73,242.66,31.8584112]
[1731940513482,70.1,242.75,242.68,31.8584112]
[1731940513681,70.1,242.75,242.49,0.1]
[1731940513682,31.9584112,242.73,242.66,31.8584112]
[1731940513882,31.9584112,242.73,242.53,4.1232]
[1731940513883,101.8584112,242.67,242.6,31.8584112]
[1731940514083,101.9584112,242.67,242.6,31.8584112]
[1731940514283,70.0,242.64,242.58,31.8584112]
[1731940514509,0.1,242.65,242.58,31.8584112]
[1731940514803,0.1,242.65,242.4,31.9584112]
[1731940514804,0.1,242.63,242.56,31.8584112]
[1731940515404,70.0,242.6,242.56,31.8584112]
[1731940515704,4.1209,242.66,242.59,31.8584112]
[1731940515912,4.1209,242.66,242.65,31.8584112]
[1731940516806,4.1209,242.66,242.61,31.8584112]
[1731940517188,70.0,242.65,242.61,31.8584112]
[1731940517597,74.1209,242.66,242.62,31.8584112]
[1731940517905,4.1209,242.66,242.62,31.8584112]
[1731940518107,4.1209,242.66,242.64,31.8584112]
[1731940518613,4.1209,242.66,242.62,16.8584112]
[1731940518614,74.1209,242.66,242.62,16.8584112]
[1731940518909,74.1209,242.66,242.59,31.8584112]
[1731940519415,101.8584112,242.62,242.53,31.8584112]
[1731940520692,70.0,242.59,242.53,31.8584112]
[1731940520899,4.1223,242.58,242.53,31.8584112]
[1731940521306,22.2633,242.7,242.57,31.8584112]
[1731940521511,4.1204,242.69,242.67,31.8584112]
[1731940521713,4.1202,242.71,242.67,31.43984354]
[1731940521884,4.1202,242.71,242.69,31.8584112]
[1731940522088,74.1198,242.73,242.69,31.8584112]
[1731940522393,4.1198,242.73,242.69,19.57168792]
[1731940522588,4.1195,242.75,242.69,19.57168792]
[1731940522985,4.1184,242.81,242.73,19.57168792]
[1731940523192,4.1181,242.83,242.79,19.57168792]
[1731940523489,70.0,242.81,242.79,19.57168792]
[1731940523801,19.57168792,242.82,242.67,4.1208]
[1731940523990,4.1181,242.83,242.76,19.57168792]
[1731940524392,4.1181,242.83,242.8,19.57168792]
[1731940524609,4.1181,242.83,242.79,31.77761576]
[1731940525316,4.1181,242.83,242.68,0.25098]
[1731940525317,10.4451,242.84,242.81,31.77761576]
[1731940525507,4.118,242.84,242.81,31.77761576]
[1731940525825,4.118,242.84,242.83,31.77761576]
[1731940526520,4.1169,242.9,242.83,31.77761576]
[1731940526694,4.1169,242.9,242.88,31.77761576]
[1731940527006,4.1169,242.9,242.86,31.77761576]
[1731940527517,4.1169,242.9,242.88,31.77761576]
[1731940527691,70.0,242.94,242.88,31.77761576]
[1731940527894,70.0,242.91,242.83,31.77761576]
[1731940528100,70.0,242.86,242.81,31.77761576]
[1731940528302,70.0,242.86,242.76,31.77761576]
[1731940528303,70.0,242.83,242.76,31.77761576]
[1731940528598,74.1182,242.83,242.78,31.77761576]
[1731940529005,74.1182,242.83,242.79,31.77761576]
[1731940529218,4.1182,242.83,242.77,31.77761576]
[1731940529517,101.77761576,242.86,242.77,31.77761576]
[1731940529690,70.0,242.93,242.85,31.77761576]
[1731940529895,16.2738,242.96,242.89,31.77761576]
[1731940529896,4.1161,242.95,242.89,31.77761576]
[1731940530313,16.1738,242.96,242.92,31.77761576]
[1731940530515,101.77761576,242.95,242.79,0.25098]
[1731940530700,70.0,242.91,242.84,31.77761576]
[1731940531108,70.0,242.91,242.86,31.77761576]
[1731940531515,105.89381576,242.94,242.86,31.77761576]
[1731940532197,70.0,242.87,242.84,31.77761576]
[1731940532416,70.0,242.87,242.82,31.77761576]
[1731940533322,70.0,242.87,242.84,31.77761576]
[1731940533499,70.0,242.9,242.84,31.77761576]
[1731940533699,4.117,242.89,242.84,31.77761576]
[1731940533917,70.0,242.91,242.86,31.77761576]
[1731940534105,70.0,242.91,242.88,31.77761576]
[1731940534310,70.0,242.91,242.77,4.1191]
[1731940534311,70.0,242.91,242.86,31.77761576]
[1731940534802,70.0,242.91,242.88,31.77761576]
[1731940535824,70.0,242.91,242.9,31.77761576]
[1731940536205,70.0,242.91,242.77,0.12549]
[1731940536408,70.0,242.91,242.89,31.77761576]
[1731940536932,70.0,242.91,242.77,4.1191]
[1731940536933,4.1168,242.91,242.77,4.1191]
[1731940537220,70.0,242.91,242.86,31.77761576]
[1731940537400,70.0,242.88,242.77,4.1191]
[1731940537600,70.0,242.88,242.81,31.77761576]
[1731940537805,70.0,242.84,242.75,4.1193]
[1731940538000,70.0,242.84,242.8,31.77761576]
[1731940538209,4.1168,242.91,242.82,31.77761576]
[1731940538210,70.0,242.87,242.82,31.77761576]
[1731940538400,70.0,242.9,242.85,31.77761576]
[1731940538598,74.1169,242.9,242.88,31.77761576]
[1731940538817,74.1169,242.9,242.84,31.77761576]
[1731940539020,31.87761576,242.93,242.86,31.77761576]
[1731940539021,70.0,242.91,242.86,31.77761576]
[1731940539224,70.0,242.91,242.88,31.77761576]
[1731940540042,70.0,242.91,242.9,31.77761576]
[1731940540328,70.0,242.91,242.88,31.77761576]
[1731940540527,70.0,242.94,242.9,31.77761576]
[1731940540822,70.0,243.04,242.93,31.77761576]
[1731940541022,70.0,243.04,243.03,31.77761576]
[1731940541220,70.0,243.0,242.99,31.77761576]
[1731940541421,70.0,243.03,242.99,31.77761576]
[1731940541619,70.0,243.03,243.01,31.77761576]
[1731940541935,70.0,243.03,242.99,31.77761576]
[1731940542234,70.0,242.97,242.95,31.77761576]
[1731940542602,70.0,242.98,242.95,31.77761576]
[1731940542803,70.0,242.98,242.94,31.77761576]
[1731940543011,70.0,242.98,242.92,31.77761576]
[1731940543205,70.0,243.02,242.94,31.77761576]
[1731940543616,70.0,243.02,242.92,31.77761576]
[1731940543617,70.0,242.98,242.92,31.77761576]
[1731940543827,31.77761576,243.01,242.9,31.77761576]
[1731940543828,70.0,242.95,242.9,31.77761576]
[1731940544011,70.0,242.98,242.9,31.77761576]
[1731940544225,70.0,242.98,242.92,31.77761576]
[1731940544424,70.0,242.98,242.9,31.77761576]